fUST/lending_fUST_20250307
["ID","MTS","AMOUNT","RATE_DAILY","PERIOD"]
[355591395,1741336246042,-905.88,0.00020273,2]
[355591396,1741336246053,-762.67,0.00020273,2]
[355591397,1741336246063,-500.0,0.00020273,2]
[355591398,1741336246078,-639.06,0.00020273,2]
[355591399,1741336246088,-611.87,0.00020273,2]
[355591400,1741336246098,-1803.62,0.00020273,2]
[355591401,1741336246108,-758.28,0.00020273,2]
[355591402,1741336246119,-1171.51,0.00020273,2]
[355591403,1741336246129,-500.0,0.00020273,2]
[355591404,1741336246138,-500.0,0.00020273,2]
[355591405,1741336246149,-500.0,0.00020273,2]
[355591406,1741336246159,-1247.46,0.00020273,2]
[355591407,1741336246169,-1655.73,0.00020273,2]
[355591408,1741336246179,-2624.89,0.00020273,2]
[355591409,1741336246188,-500.0,0.00020273,2]
[355591410,1741336246199,-536.6,0.00020273,2]
[355591411,1741336246209,-500.0,0.00020273,2]
[355591412,1741336246219,-209.45772237,0.00020273,2]
[355591413,1741336246229,-500.0,0.00020273,2]
[355591414,1741336246239,-1019.22,0.00020273,2]
[355591415,1741336246249,-500.0,0.00020273,2]
[355591416,1741336246260,-500.0,0.00020273,2]
[355591417,1741336246270,-1521.46,0.00020273,2]
[355591418,1741336246280,-547.4,0.00020273,2]
[355591419,1741336246289,-2394.07,0.00020273,2]
[355591420,1741336246299,-365.51614328,0.00020273,2]
[355591421,1741336246309,-1420.81,0.00020273,2]
[355591422,1741336246318,-1172.82,0.00020273,2]
[355591423,1741336246328,-102269.48,0.00020273,2]
[355591424,1741336246338,-782.86,0.00020273,2]
[355591425,1741336246347,-527.52,0.00020273,2]
[355591426,1741336246357,-750.14,0.00020273,2]
[355591427,1741336246366,-500.0,0.00020273,2]
[355591428,1741336246377,-1243.51,0.00020273,2]
[355591429,1741336246387,-500.0,0.00020273,2]
[355591430,1741336246398,-3590.82,0.00020273,2]
[355591431,1741336246408,-1818.58,0.00020273,2]
[355591432,1741336246417,-500.0,0.00020273,2]
[355591433,1741336246427,-911.83,0.00020273,2]
[355591434,1741336246437,-1902.03,0.00020273,2]
[355591435,1741336246446,-597.98,0.00020273,2]
[355591436,1741336246456,-1170.18,0.00020273,2]
[355591437,1741336246465,-500.0,0.00020273,2]
[355591438,1741336246475,-8842.05,0.00020273,2]
[355591439,1741336246485,-500.0,0.00020273,2]
[355591440,1741336246495,-500.0,0.00020273,2]
[355591441,1741336246505,-534.88,0.00020273,2]
[355591442,1741336246515,-842.15,0.00020273,2]
[355591443,1741336246525,-1804.72,0.00020273,2]
[355591444,1741336246534,-12231.55,0.00020273,2]
[355591445,1741336246544,-2178.97,0.00020273,2]
[355591446,1741336246554,-500.0,0.00020273,2]
[355591447,1741336246563,-985.53,0.00020273,2]
[355591448,1741336246573,-500.0,0.00020273,2]
[355591449,1741336246583,-500.0,0.00020273,2]
[355591450,1741336246592,-500.0,0.00020273,2]
[355591451,1741336246602,-924.53,0.00020273,2]
[355591452,1741336246611,-3255.98,0.00020273,2]
[355591453,1741336246621,-500.0,0.00020273,2]
[355591454,1741336246631,-2756.75,0.00020273,2]
[355591455,1741336246642,-3569.11,0.00020273,2]
[355591456,1741336246651,-500.0,0.00020273,2]
[355591457,1741336246661,-576.08,0.00020273,2]
[355591458,1741336246671,-500.0,0.00020273,2]
[355591459,1741336246680,-1610.58,0.00020273,2]
[355591460,1741336246691,-993.83,0.00020273,2]
[355591461,1741336246701,-690.33,0.00020273,2]
[355591462,1741336246711,-6828.16,0.00020273,2]
[355591463,1741336246720,-1209.68,0.00020273,2]
[355591464,1741336246729,-408.38526359,0.00020273,2]
[355591465,1741336246739,-500.0,0.00020273,2]
[355591466,1741336246748,-804.61,0.00020273,2]
[355591467,1741336246757,-3376.74,0.00020273,2]
[355591468,1741336246767,-1942.87,0.00020273,2]
[355591469,1741336246777,-5457.62,0.00020273,2]
[355591470,1741336246828,-582.99,0.00020273,2]
[355591471,1741336246837,-521.04,0.00020273,2]
[355591472,1741336246846,-563.8,0.00020273,2]
[355591473,1741336246856,-936.23,0.00020273,2]
[355591474,1741336246866,-1507.59,0.00020273,2]
[355591475,1741336246875,-500.0,0.00020273,2]
[355591476,1741336246884,-500.0,0.00020273,2]
[355591477,1741336246894,-935.78,0.00020273,2]
[355591478,1741336246903,-602.2,0.00020273,2]
[355591479,1741336246913,-1792.61,0.00020273,2]
[355591480,1741336246922,-841.49,0.00020273,2]
[355591481,1741336246932,-1897.52,0.00020273,2]
[355591482,1741336246941,-1559.85,0.00020273,2]
[355591483,1741336246951,-609.49,0.00020273,2]
[355591484,1741336246960,-500.0,0.00020273,2]
[355591485,1741336246970,-564.81,0.00020273,2]
[355591486,1741336246979,-1278.71,0.00020273,7]
[355591487,1741336246988,-768.16,0.00020273,2]
[355591488,1741336246998,-500.0,0.00020273,2]
[355591489,1741336247008,-967.45,0.00020273,2]
[355591490,1741336247018,-1626.09,0.00020273,2]
[355591491,1741336247029,-1417.07,0.00020273,2]
[355591492,1741336247038,-551.67,0.00020273,2]
[355591493,1741336247048,-1049.84,0.00020273,2]
[355591494,1741336247057,-889.66,0.00020273,2]
[355591495,1741336247068,-500.0,0.00020273,2]
[355591496,1741336247081,-834.89,0.00020273,2]
[355591497,1741336247090,-992.36,0.00020273,2]
[355591498,1741336247100,-5768.2,0.00020273,2]
[355591499,1741336247110,-4691.08,0.00020273,2]
[355591500,1741336247119,-500.0,0.00020273,2]
[355591501,1741336247130,-500.0,0.00020273,2]
[355591502,1741336247139,-5041.97,0.00020273,2]
[355591503,1741336247151,-510.8,0.00020273,2]
[355591504,1741336247163,-691.35,0.00020273,2]
[355591505,1741336247172,-5998.48,0.00020273,2]
[355591506,1741336247182,-500.0,0.00020273,2]
[355591507,1741336247191,-500.0,0.00020273,2]
[355591508,1741336247201,-793.95,0.00020273,2]
[355591509,1741336247211,-1803.74,0.00020273,2]
[355591510,1741336247221,-734.98,0.00020273,2]
[355591511,1741336247231,-500.0,0.00020273,2]
[355591512,1741336247240,-2374.33,0.00020273,2]
[355591513,1741336247250,-685.17,0.00020273,2]
[355591514,1741336247260,-1093.0251984,0.00020481,2]
[355591515,1741336247269,-617.81,0.00020547,2]
[355591516,1741336247279,-500.0,0.00020547,2]
[355591517,1741336247288,-608.45,0.00020547,2]
[355591518,1741336247298,-763.32,0.00020547,3]
[355591519,1741336247307,-545.54607715,0.00020547,2]
[355591520,1741336247317,-575.61,0.00020547,2]
[355591521,1741336247326,-500.0,0.00020547,2]
[355591522,1741336247336,-500.0,0.00020547,2]
[355591523,1741336247345,-500.0,0.00020547,2]
[355591524,1741336247354,-959.98,0.00020547,2]
[355591525,1741336247363,-500.0,0.00020547,2]
[355591526,1741336247373,-500.0,0.00020547,2]
[355591527,1741336247383,-500.0,0.00020547,2]
[355591528,1741336247398,-500.0,0.00020547,2]
[355591529,1741336247409,-500.0,0.00020547,2]
[355591530,1741336247418,-666.96,0.00020547,2]
[355591531,1741336247428,-780.12,0.00020547,2]
[355591532,1741336247437,-644.87,0.00020547,2]
[355591533,1741336247446,-527.08,0.00020547,2]
[355591534,1741336247455,-500.0,0.00020547,2]
[355591535,1741336247465,-554.84115746,0.00020547,2]
[355591536,1741336247474,-1040.32,0.00020547,2]
[355591537,1741336247483,-500.0,0.00020547,2]
[355591538,1741336247492,-683.87,0.00020547,2]
[355591539,1741336247502,-500.0,0.00020547,2]
[355591540,1741336247511,-251.82645587,0.00020547,2]
[355591541,1741336247521,-500.0,0.00020547,2]
[355591542,1741336247530,-662.36,0.00020547,2]
[355591543,1741336247546,-846.37,0.00020547,2]
[355591544,1741336247555,-500.0,0.00020547,2]
[355591545,1741336247564,-500.0,0.00020547,2]
[355591546,1741336247573,-747.78,0.00020547,2]
[355591547,1741336247583,-838.47,0.00020547,2]
[355591549,1741336247592,-500.0,0.00020547,2]
[355591551,1741336247602,-662.31,0.00020547,2]
[355591553,1741336247611,-500.0,0.00020547,2]
[355591555,1741336247620,-500.0,0.00020547,2]
[355591557,1741336247630,-575.37,0.00020547,2]
[355591559,1741336247639,-500.0,0.00020547,2]
[355591561,1741336247650,-727.59,0.00020547,2]
[355591563,1741336247659,-500.0,0.00020547,2]
[355591565,1741336247669,-1064.79,0.00020547,2]
[355591567,1741336247678,-506.28,0.00020547,2]
[355591569,1741336247687,-500.0,0.00020547,2]
[355591571,1741336247696,-500.0,0.00020547,2]
[355591572,1741336247705,-500.0,0.00020547,2]
[355591573,1741336247715,-500.0,0.00020547,2]
[355591574,1741336247724,-1701.12,0.00020547,2]
[355591575,1741336247733,-500.0,0.00020547,2]
[355591576,1741336247743,-1562.91,0.00020547,2]
[355591577,1741336247752,-500.0,0.00020547,2]
[355591578,1741336247761,-1677.5,0.00020547,2]
[355591579,1741336247771,-665.7,0.00020547,2]
[355591580,1741336247779,-501.42,0.00020547,2]
[355591581,1741336247789,-759.5,0.00020547,2]
[355591582,1741336247798,-1318.97,0.00020547,2]
[355591583,1741336247807,-752.01,0.00020547,2]
[355591584,1741336247817,-805.75,0.00020547,2]
[355591585,1741336247826,-500.0,0.00020547,2]
[355591586,1741336247835,-583.87,0.00020547,2]
[355591587,1741336247845,-500.0,0.00020547,2]
[355591588,1741336247855,-500.0,0.00020547,2]
[355591589,1741336247864,-1258.08,0.00020547,2]
[355591590,1741336247873,-550.86,0.00020547,2]
[355591591,1741336247882,-500.0,0.00020547,2]
[355591592,1741336247892,-723.03,0.00020547,2]
[355591593,1741336247902,-905.88,0.00020547,2]
[355591594,1741336247911,-762.67,0.00020547,2]
[355591595,1741336247920,-500.0,0.00020547,2]
[355591596,1741336247930,-639.06,0.00020547,2]
[355591597,1741336247939,-611.87,0.00020547,2]
[355591598,1741336247948,-1803.62,0.00020547,2]
[355591599,1741336247957,-758.28,0.00020547,2]
[355591600,1741336247966,-1171.51,0.00020547,2]
[355591601,1741336247975,-500.0,0.00020547,2]
[355591602,1741336247985,-500.0,0.00020547,2]
[355591603,1741336247994,-500.0,0.00020547,2]
[355591604,1741336248003,-1247.46,0.00020547,2]
[355591605,1741336248013,-1655.73,0.00020547,2]
[355591606,1741336248023,-2624.89,0.00020547,2]
[355591607,1741336248032,-500.0,0.00020547,2]
[355591608,1741336248042,-536.6,0.00020547,2]
[355591609,1741336248052,-500.0,0.00020547,2]
[355591610,1741336248061,-500.0,0.00020547,2]
[355591611,1741336248076,-1019.22,0.00020547,2]
[355591612,1741336248085,-500.0,0.00020547,2]
[355591613,1741336248096,-500.0,0.00020547,2]
[355591614,1741336248106,-1521.46,0.00020547,2]
[355591615,1741336248117,-547.4,0.00020547,2]
[355591616,1741336248127,-2394.07,0.00020547,2]
[355591617,1741336248137,-1420.81,0.00020547,2]
[355591618,1741336248148,-1172.82,0.00020547,2]
[355591619,1741336248158,-62988.55559296,0.00020547,2]
[355591620,1741336248519,-151.0,0.00019451,2]
[355591621,1741336248529,-8707.4325014,0.00020547,2]
[355591622,1741336248541,-4318.67109477,0.00020547,2]
[355591647,1741337322033,-280.27847462,0.000175,2]
[355591648,1741337347891,4500.0,0.000162,10]
[355591649,1741337347918,4500.0,0.000162,10]
[355591650,1741337347944,1000.0,0.000162,10]
[355591651,1741337354185,-194.874709,0.00018103,2]
[355591652,1741337354206,-300.0,0.00018165,2]
[355591653,1741337354227,-104.76770164,0.00018166,2]
[355591654,1741337358771,3500.0,0.000162,10]
[355591655,1741337358800,4500.0,0.000162,10]
[355591656,1741337367264,10000.0,0.00016022,2]
[355591657,1741337388686,6330.14,0.00016022,2]
[355591659,1741337401772,200.0,0.00011,2]
[355591701,1741337432683,-764.19457718,0.000162,10]
[355591703,1741337432694,-340.92960006,0.000162,10]
[355591724,1741337432886,-894.87582276,0.000162,10]
[355591726,1741337432896,-161.23,0.00018156,2]
[355591728,1741337432906,-300.0,0.00018165,2]
[355591730,1741337432916,-24795.23229836,0.00018166,2]
[355591732,1741337432925,-184.73517564,0.000188,2]
[355591735,1741337432935,-4031.37970346,0.0001882,2]
[355591738,1741337432944,-161.23,0.00018836,2]
[355591740,1741337432954,-10167.83237753,0.00018846,2]
[355591742,1741337432963,-161.23,0.0001889,2]
[355591744,1741337432972,-384.91095685,0.000189,2]
[355591746,1741337432981,-1394.918378,0.00018978,2]
[355591748,1741337432990,-161.23,0.00019068,2]
[355591750,1741337432999,-73821.40963537,0.00019078,2]
[355591753,1741337433014,-28621.18408282,0.00019078,2]
[355591887,1741337438600,-94335.89896503,0.00019078,2]
[355591903,1741337440806,-16092.2854998,0.00019078,2]
[355591904,1741337440817,-339.13901049,0.00019078,2]
[355591910,1741337443796,-8790.08280649,0.00019078,2]
[355591911,1741337443805,-3000.0,0.00019131,2]
[355591912,1741337443815,-364.02978971,0.00019165,2]
[355591913,1741337443824,-505.21254204,0.00019165,2]
[355591914,1741337443833,-462.05535291,0.00019166,2]
[355591915,1741337443845,-37.94464709,0.00019166,2]
[355591916,1741337443854,-540.0,0.00019166,2]
[355591917,1741337443863,-583.2,0.00019166,2]
[355591918,1741337443873,-629.856,0.00019166,2]
[355591919,1741337443882,-680.24448,0.00019166,2]
[355591920,1741337443891,-734.6640384,0.00019166,2]
[355591921,1741337443900,-793.43716147,0.00019166,2]
[355591922,1741337443909,-856.91213439,0.00019166,2]
[355591923,1741337443919,-925.46510514,0.00019166,2]
[355591924,1741337443928,-1000.0,0.00019166,2]
[355591925,1741337443938,-500.0,0.00019173,2]
[355591926,1741337443947,-505.03189623,0.00019173,2]
[355591927,1741337443955,-500.0,0.00019173,2]
[355591928,1741337443966,-500.0,0.00019173,2]
[355591929,1741337443975,-154.65243663,0.00019173,2]
[355591930,1741337443984,-500.0,0.00019173,2]
[355591931,1741337443994,-370.23883468,0.00019173,2]
[355591932,1741337444003,-500.0,0.00019173,2]
[355591933,1741337444012,-634.78,0.00019178,2]
[355591934,1741337444022,-500.0,0.00019178,2]
[355591935,1741337444031,-500.0,0.00019178,2]
[355591936,1741337444040,-532.17606104,0.00019178,2]
[355591937,1741337444050,-500.0,0.00019178,2]
[355591938,1741337444059,-173.38751211,0.00019178,2]
[355591939,1741337444069,-500.0,0.00019178,2]
[355591940,1741337444078,-500.0,0.00019178,2]
[355591941,1741337444087,-500.0,0.00019178,2]
[355591942,1741337444097,-564.01,0.00019178,2]
[355591943,1741337444106,-500.0,0.00019178,2]
[355591944,1741337444115,-715.6,0.00019178,2]
[355591945,1741337444126,-500.0,0.00019178,2]
[355591946,1741337444135,-500.0,0.00019178,2]
[355591947,1741337444144,-572.0,0.00019178,2]
[355591948,1741337444154,-500.0,0.00019178,2]
[355591949,1741337444163,-500.0,0.00019178,2]
[355591950,1741337444173,-500.0,0.00019178,2]
[355591951,1741337444183,-500.0,0.00019178,2]
[355591952,1741337444192,-500.0,0.00019178,2]
[355591953,1741337444201,-500.0,0.00019178,2]
[355591954,1741337444211,-500.0,0.00019178,2]
[355591955,1741337444220,-500.0,0.00019178,2]
[355591956,1741337444230,-619.76,0.00019178,2]
[355591957,1741337444239,-500.0,0.00019178,2]
[355591958,1741337444248,-560.84,0.00019178,2]
[355591959,1741337444257,-500.0,0.00019178,2]
[355591960,1741337444267,-764.42,0.00019178,2]
[355591961,1741337444276,-500.0,0.00019178,2]
[355591962,1741337444286,-500.0,0.00019178,2]
[355591963,1741337444295,-500.0,0.00019178,2]
[355591964,1741337444305,-500.0,0.00019178,2]
[355591965,1741337444314,-500.0,0.00019178,2]
[355591966,1741337444323,-500.0,0.00019178,2]
[355591967,1741337444333,-798.6,0.00019178,2]
[355591968,1741337444342,-578.7,0.00019178,2]
[355591969,1741337444351,-500.0,0.00019178,2]
[355591970,1741337444361,-500.0,0.00019178,2]
[355591971,1741337444370,-500.0,0.00019178,2]
[355591972,1741337444380,-546.52,0.00019178,2]
[355591973,1741337444389,-1352.45,0.00019178,2]
[355591974,1741337444398,-1172.18,0.00019178,2]
[355591975,1741337444407,-500.0,0.00019178,2]
[355591976,1741337444417,-891.16,0.00019178,2]
[355591977,1741337444427,-272.81581843,0.00019178,2]
[355591978,1741337444436,-989.22,0.00019178,2]
[355591979,1741337444447,-500.0,0.00019178,2]
[355591980,1741337444457,-500.0,0.00019178,2]
[355591981,1741337444468,-500.0,0.00019178,2]
[355591982,1741337444477,-569.63,0.00019178,2]
[355591983,1741337444486,-172.9195578,0.00019178,2]
[355591984,1741337444497,-581.86,0.00019178,2]
[355591985,1741337444506,-604.31,0.00019178,2]
[355591986,1741337444516,-500.0,0.00019178,2]
[355591987,1741337444525,-943.56,0.00019178,2]
[355591988,1741337444535,-547.32,0.00019178,2]
[355591989,1741337444545,-679.41,0.00019178,2]
[355591990,1741337444555,-879.27,0.00019178,2]
[355591991,1741337444564,-644.53667615,0.00019178,2]
[355591992,1741337444574,-1352.71,0.00019178,2]
[355591993,1741337444583,-542.28,0.00019178,2]
[355591994,1741337444592,-500.0,0.00019178,2]
[355591995,1741337444602,-500.0,0.00019178,2]
[355591996,1741337444611,-878.63,0.00019178,2]
[355591997,1741337444620,-500.0,0.00019178,2]
[355591998,1741337444630,-500.0,0.00019178,2]
[355591999,1741337444639,-500.0,0.00019178,2]
[355592000,1741337444648,-500.0,0.00019178,2]
[355592001,1741337444657,-500.0,0.00019178,2]
[355592002,1741337444666,-1221.86,0.00019178,2]
[355592003,1741337444675,-572.49,0.00019178,3]
[355592004,1741337444685,-1241.79,0.00019178,2]
[355592005,1741337444694,-500.0,0.00019178,2]
[355592006,1741337444703,-500.0,0.00019178,2]
[355592007,1741337444714,-721.86,0.00019178,2]
[355592008,1741337444723,-179.97159242,0.00019178,2]
[355592009,1741337444733,-1795.55,0.00019178,2]
[355592010,1741337444743,-500.0,0.00019178,2]
[355592011,1741337444752,-500.0,0.00019178,2]
[355592012,1741337444761,-593.86,0.00019178,2]
[355592013,1741337444770,-500.0,0.00019178,2]
[355592014,1741337444779,-500.0,0.00019178,2]
[355592015,1741337444789,-2842.73,0.00019178,2]
[355592016,1741337444799,-500.0,0.00019178,2]
[355592017,1741337444809,-500.0,0.00019178,2]
[355592018,1741337444818,-500.0,0.00019178,2]
[355592019,1741337444828,-998.45,0.00019178,2]
[355592020,1741337444837,-1505.77,0.00019178,2]
[355592021,1741337444846,-500.0,0.00019178,2]
[355592022,1741337444855,-1968.67,0.00019178,2]
[355592023,1741337444865,-780.21,0.00019178,2]
[355592024,1741337444874,-500.0,0.00019178,2]
[355592025,1741337444884,-1439.71,0.00019178,2]
[355592026,1741337444893,-879.62,0.00019178,2]
[355592027,1741337444903,-500.0,0.00019178,2]
[355592028,1741337444912,-6999.95,0.00019178,2]
[355592029,1741337444922,-500.0,0.00019178,2]
[355592030,1741337444931,-790.63,0.00019178,2]
[355592031,1741337444942,-500.0,0.00019178,2]
[355592032,1741337444952,-719.98,0.00019178,2]
[355592033,1741337444962,-500.0,0.00019178,2]
[355592034,1741337444971,-731.92,0.00019178,2]
[355592035,1741337444981,-666.7,0.00019178,2]
[355592036,1741337444991,-926.39,0.00019178,2]
[355592037,1741337445003,-2182.43,0.00019178,2]
[355592038,1741337445012,-984.45,0.00019178,2]
[355592039,1741337445022,-500.0,0.00019178,2]
[355592040,1741337445031,-786.78,0.00019178,2]
[355592041,1741337445041,-1428.74,0.00019178,2]
[355592042,1741337445050,-500.0,0.00019178,2]
[355592043,1741337445059,-9683.31,0.00019178,2]
[355592044,1741337445068,-500.0,0.00019178,2]
[355592045,1741337445077,-5405.63,0.00019178,2]
[355592046,1741337445086,-500.0,0.00019178,2]
[355592047,1741337445096,-500.0,0.00019178,2]
[355592048,1741337445105,-500.0,0.00019178,2]
[355592049,1741337445115,-500.0,0.00019178,2]
[355592050,1741337445124,-500.0,0.00019178,2]
[355592051,1741337445133,-1538.11,0.00019178,2]
[355592052,1741337445142,-588.66196387,0.00019178,2]
[355592072,1741338550641,-183.742672,0.00017725,2]
[355592132,1741338632068,-194.8747098,0.00018052,2]
[355592134,1741338632078,-300.0,0.00018144,2]
[355592136,1741338632087,-1482.53,0.00018144,120]
[355592138,1741338632096,-4154.21070339,0.00018145,2]
[355592140,1741338632108,-1954.39,0.00018145,2]
[355592147,1741338632173,-18791.39929661,0.00018145,2]
[355592148,1741338632183,-1241.13576094,0.00018878,2]
[355592150,1741338632193,-256.60730457,0.000189,2]
[355592151,1741338632204,-222000.0,0.00018978,2]
[355592153,1741338632213,-192.26060316,0.00018978,2]
[355592155,1741338632223,-353.64877943,0.00019164,2]
[355592157,1741338632232,-254.82085279,0.00019164,2]
[355592158,1741338632241,-194071.95974898,0.00019164,2]
[355592204,1741338637710,-178.37459696,0.00019163,2]
[355592206,1741338637721,-247.5541456,0.00019163,2]
[355592208,1741338637731,-2949.41026344,0.00019164,2]
[355592421,1741338640262,-722.92988863,0.00019164,2]
[355592422,1741338640278,-2120.90000002,0.00019164,2]
[355592460,1741338642824,-600.00162311,0.00019164,2]
[355592461,1741338642862,-12.23760022,0.00019164,2]
[355592462,1741338642874,-1185.93380753,0.00019164,2]
[355592497,1741338645873,-13325.75521807,0.00019164,2]
[355592500,1741338645885,-482.0,0.00019165,2]
[355592502,1741338645895,-482.0,0.00019165,2]
[355592504,1741338645904,-482.0,0.00019165,2]
[355592506,1741338645914,-482.0,0.00019165,2]
[355592508,1741338645923,-482.0,0.00019165,2]
[355592510,1741338645934,-482.0,0.00019165,2]
[355592512,1741338645944,-482.0,0.00019165,2]
[355592514,1741338645954,-482.0,0.00019165,2]
[355592516,1741338645964,-482.0,0.00019165,2]
[355592518,1741338645974,-482.0,0.00019165,2]
[355592520,1741338645983,-482.0,0.00019165,2]
[355592522,1741338645991,-482.0,0.00019165,2]
[355592524,1741338646000,-482.0,0.00019165,2]
[355592526,1741338646009,-482.0,0.00019165,2]
[355592528,1741338646019,-482.0,0.00019165,2]
[355592530,1741338646028,-482.0,0.00019165,2]
[355592532,1741338646037,-482.0,0.00019165,2]
[355592534,1741338646046,-482.0,0.00019165,2]
[355592536,1741338646055,-482.0,0.00019165,2]
[355592538,1741338646065,-482.0,0.00019165,2]
[355592540,1741338646074,-482.0,0.00019165,2]
[355592542,1741338646083,-482.0,0.00019165,2]
[355592544,1741338646092,-482.0,0.00019165,2]
[355592546,1741338646102,-482.0,0.00019165,2]
[355592548,1741338646111,-482.0,0.00019165,2]
[355592550,1741338646120,-482.0,0.00019165,2]
[355592552,1741338646129,-482.0,0.00019165,2]
[355592554,1741338646139,-500.0,0.00019173,2]
[355592556,1741338646148,-606.66637884,0.00019173,2]
[355592558,1741338646157,-500.0,0.00019173,2]
[355592560,1741338646166,-482.01245608,0.00019173,2]
[355592562,1741338646176,-212.57287296,0.00019173,2]
[355592564,1741338646185,-500.0,0.00019173,2]
[355592566,1741338646195,-500.0,0.00019173,2]
[355592568,1741338646204,-500.0,0.00019173,2]
[355592570,1741338646214,-250.0,0.00019173,2]
[355592572,1741338646223,-500.0,0.00019178,2]
[355592574,1741338646234,-500.0,0.00019178,2]
[355592576,1741338646243,-500.0,0.00019178,2]
[355592578,1741338646253,-500.0,0.00019178,2]
[355592579,1741338646262,-500.0,0.00019178,2]
[355592580,1741338646272,-500.0,0.00019178,2]
[355592581,1741338646281,-629.46,0.00019178,2]
[355592582,1741338646291,-500.0,0.00019178,2]
[355592583,1741338646301,-778.81,0.00019178,2]
[355592584,1741338646310,-500.0,0.00019178,2]
[355592585,1741338646320,-500.0,0.00019178,2]
[355592586,1741338646329,-523.74,0.00019178,2]
[355592587,1741338646339,-500.0,0.00019178,2]
[355592588,1741338646349,-557.61,0.00019178,2]
[355592589,1741338646359,-524.52,0.00019178,2]
[355592590,1741338646370,-500.0,0.00019178,2]
[355592591,1741338646381,-500.0,0.00019178,2]
[355592592,1741338646392,-634.76514576,0.00019178,2]
[355592593,1741338646404,-1170.95,0.00019178,2]
[355592594,1741338646413,-500.0,0.00019178,2]
[355592595,1741338646423,-500.0,0.00019178,2]
[355592596,1741338646433,-500.0,0.00019178,2]
[355592597,1741338646443,-500.0,0.00019178,2]
[355592598,1741338646453,-548.64,0.00019178,3]
[355592599,1741338646464,-500.0,0.00019178,2]
[355592600,1741338646475,-500.0,0.00019178,2]
[355592601,1741338646484,-500.0,0.00019178,2]
[355592602,1741338646495,-500.0,0.00019178,2]
[355592603,1741338646505,-500.0,0.00019178,2]
[355592604,1741338646515,-505.95,0.00019178,2]
[355592605,1741338646525,-569.98,0.00019178,2]
[355592606,1741338646534,-500.0,0.00019178,2]
[355592607,1741338646544,-500.0,0.00019178,2]
[355592608,1741338646553,-545.89,0.00019178,2]
[355592609,1741338646563,-500.0,0.00019178,2]
[355592610,1741338646572,-811.62,0.00019178,2]
[355592611,1741338646584,-579.13,0.00019178,2]
[355592612,1741338646593,-500.0,0.00019178,2]
[355592613,1741338646607,-689.98,0.00019178,2]
[355592614,1741338646628,-500.0,0.00019178,2]
[355592615,1741338646639,-554.59,0.00019178,2]
[355592616,1741338646649,-500.0,0.00019178,2]
[355592617,1741338646659,-1296.09,0.00019178,2]
[355592618,1741338646668,-280.0,0.00019178,2]
[355592619,1741338646678,-500.0,0.00019178,2]
[355592620,1741338646687,-500.0,0.00019178,2]
[355592621,1741338646697,-1123.34,0.00019178,2]
[355592622,1741338646707,-500.0,0.00019178,2]
[355592623,1741338646716,-1220.99,0.00019178,2]
[355592624,1741338646725,-500.0,0.00019178,2]
[355592625,1741338646735,-519.68,0.00019178,2]